fUST/lending_fUST_20250131
["ID","MTS","AMOUNT","RATE_DAILY","PERIOD"]
[351058755,1738318234353,-923.3868695,0.000165,2]
[351058756,1738318234364,-250.703377,0.000165,2]
[351058757,1738318234374,-151.0,0.000165,2]
[351058758,1738318234383,-201.87718,0.000165,2]
[351058759,1738318234394,-500.0,0.00016529,2]
[351058760,1738318234404,-500.0,0.00016529,2]
[351058761,1738318234414,-500.0,0.00016529,2]
[351058762,1738318234424,-500.0,0.00016529,2]
[351058763,1738318234434,-500.0,0.00016575,2]
[351058764,1738318234443,-500.0,0.00016575,2]
[351058765,1738318234452,-365.29,0.00016575,2]
[351058766,1738318234462,-500.0,0.00016575,2]
[351058767,1738318234473,-605.62,0.00016575,2]
[351058768,1738318234481,-453.57,0.00016575,2]
[351058769,1738318234490,-500.0,0.00016576,2]
[351058770,1738318234499,-1061.88,0.00016576,2]
[351058771,1738318234508,-500.0,0.00016576,2]
[351058772,1738318234518,-500.0,0.00016576,2]
[351058773,1738318234527,-313.48,0.00016576,2]
[351058774,1738318234537,-371.29066271,0.000166,2]
[351058775,1738318234546,-500.0,0.0001661,2]
[351058776,1738318234555,-500.0,0.0001661,2]
[351058777,1738318234564,-500.0,0.00016712,2]
[351058778,1738318234574,-500.0,0.00016712,2]
[351058779,1738318234583,-500.0,0.00016712,2]
[351058780,1738318234594,-151.0,0.00016713,2]
[351058781,1738318234604,-500.0,0.00016713,2]
[351058782,1738318234614,-1061.88,0.00016713,2]
[351058783,1738318234623,-69.98205301,0.00016713,2]
[351058784,1738318234637,-430.01794699,0.00016713,2]
[351058785,1738318234646,-29.49469437,0.00016849,2]
[351058786,1738318234658,-470.50530563,0.00016849,2]
[351058787,1738318234667,-500.0,0.00016849,2]
[351058788,1738318234676,-156.49469432,0.00016849,2]
[351058857,1738318240658,-500.0,0.00016438,2]
[351058859,1738318240667,-343.50530568,0.00016849,2]
[351058860,1738318240677,-500.0,0.0001685,2]
[351058861,1738318240686,-1061.88,0.0001685,2]
[351058862,1738318240696,-500.0,0.0001685,2]
[351058864,1738318240706,-500.0,0.00016986,2]
[351058866,1738318240716,-500.0,0.00016986,2]
[351058868,1738318240725,-536.03,0.00016986,2]
[351058870,1738318240734,-258.9,0.00016987,2]
[351058872,1738318240743,-1061.88,0.00016987,2]
[351058874,1738318240752,-500.0,0.00016987,2]
[351058876,1738318240761,-929.59697108,0.00017,2]
[351058878,1738318240773,-2070.40302892,0.00017,2]
[351058880,1738318240782,-151.0,0.00017,2]
[351058881,1738318240791,-500.17,0.00017123,2]
[351058882,1738318240801,-500.0,0.00017123,2]
[351058883,1738318240810,-1061.88,0.00017124,2]
[351058884,1738318240820,-500.0,0.00017124,2]
[351058885,1738318240829,-500.0,0.0001726,2]
[351058886,1738318240839,-1061.88,0.00017261,2]
[351058887,1738318240849,-500.0,0.00017261,2]
[351058888,1738318240859,-500.0,0.00017397,2]
[351058889,1738318240868,-1061.88,0.00017398,2]
[351058890,1738318240877,-467.58,0.00017398,2]
[351058891,1738318240887,-500.0,0.00017452,2]
[351058892,1738318240897,-593.68,0.00017534,2]
[351058893,1738318240906,-1061.88,0.00017535,2]
[351058894,1738318240915,-1061.88,0.00017672,2]
[351058895,1738318240925,-500.0,0.00017808,2]
[351058896,1738318240935,-487.46929927,0.00017809,2]
[351058954,1738318243447,-303.33444406,0.00017809,2]
[351058958,1738318243504,-271.07625667,0.00017809,2]
[351058959,1738318243513,-500.0,0.00017842,2]
[351058960,1738318243523,-430.3960837,0.000179,2]
[351058961,1738318243532,-420.0,0.00017944,2]
[351058962,1738318243542,-1061.88,0.00017946,2]
[351058963,1738318243551,-430.39608343,0.00018072,2]
[351058964,1738318243561,-1061.88,0.00018083,2]
[351058965,1738318243571,-1061.88,0.0001822,2]
[351058966,1738318243580,-430.39608343,0.00018245,2]
[351058967,1738318243590,-396.0,0.00018298,2]
[351058968,1738318243599,-1061.88,0.00018357,2]
[351058969,1738318243608,-430.39608343,0.00018417,2]
[351058970,1738318243618,-1061.88,0.00018494,2]
[351058971,1738318243627,-2003.33272417,0.000185,2]
[351058972,1738318243636,-500.0,0.00018548,2]
[351058973,1738318243646,-430.39608343,0.0001859,2]
[351058974,1738318243655,-155.2,0.000186,2]
[351058975,1738318243665,-1061.88,0.00018631,2]
[351058976,1738318243674,-500.0,0.00018761,2]
[351058977,1738318243684,-500.0,0.00018761,2]
[351058978,1738318243694,-500.0,0.00018761,2]
[351058979,1738318243703,-500.0,0.00018761,2]
[351058980,1738318243712,-500.0,0.00018761,2]
[351058981,1738318243722,-401.69871018,0.00018761,2]
[351058982,1738318243731,-500.0,0.00018761,2]
[351058983,1738318243740,-403.08758892,0.00018761,2]
[351058984,1738318243753,-96.91241108,0.00018761,2]
[351058985,1738318243762,-363.69258112,0.00018761,2]
[351059267,1738318246670,-136.30741888,0.00018761,2]
[351059270,1738318246680,-500.0,0.00018761,2]
[351059273,1738318246690,-500.0,0.00018761,2]
[351059276,1738318246701,-500.0,0.00018761,2]
[351059278,1738318246710,-500.0,0.00018761,2]
[351059280,1738318246720,-500.0,0.00018761,2]
[351059282,1738318246729,-346.65749972,0.00018761,2]
[351059285,1738318246739,-500.0,0.00018761,2]
[351059287,1738318246748,-500.0,0.00018761,2]
[351059289,1738318246759,-500.0,0.00018761,2]
[351059291,1738318246768,-500.0,0.00018761,2]
[351059293,1738318246778,-500.0,0.00018761,2]
[351059295,1738318246787,-500.0,0.00018761,2]
[351059297,1738318246796,-500.0,0.00018761,2]
[351059299,1738318246805,-500.0,0.00018761,2]
[351059301,1738318246814,-500.0,0.00018761,2]
[351059302,1738318246823,-500.0,0.00018761,2]
[351059303,1738318246832,-500.0,0.00018761,2]
[351059304,1738318246841,-500.0,0.00018761,2]
[351059305,1738318246850,-500.0,0.00018761,2]
[351059306,1738318246859,-366.91703291,0.00018761,2]
[351059307,1738318246868,-500.0,0.00018761,2]
[351059308,1738318246878,-500.0,0.00018761,2]
[351059309,1738318246895,-500.0,0.00018761,2]
[351059310,1738318246908,-500.0,0.00018761,2]
[351059311,1738318246917,-500.0,0.00018761,2]
[351059312,1738318246927,-500.0,0.00018761,2]
[351059313,1738318246937,-500.0,0.00018761,2]
[351059314,1738318246947,-500.0,0.00018761,2]
[351059316,1738318246957,-500.0,0.00018761,2]
[351059317,1738318246966,-500.0,0.00018761,2]
[351059318,1738318246977,-500.0,0.00018761,2]
[351059320,1738318246987,-430.39608343,0.00018762,2]
[351059322,1738318246996,-1061.88,0.00018768,2]
[351059324,1738318247006,-773.14995816,0.000189,2]
[351059326,1738318247016,-1061.88,0.00018905,2]
[351059328,1738318247025,-430.39608343,0.00018934,2]
[351059330,1738318247035,-221.78660571,0.00019,2]
[351059332,1738318247044,-3000.0,0.00019,2]
[351059334,1738318247054,-1061.88,0.00019042,2]
[351059336,1738318247064,-355.0,0.000191,8]
[351059338,1738318247073,-430.39608343,0.00019107,2]
[351059340,1738318247085,-500.0,0.00019178,7]
[351059342,1738318247095,-162.518657,0.00019178,2]
[351059345,1738318247105,-1061.88,0.00019179,2]
[351059347,1738318247114,-1365.76,0.000192,2]
[351059349,1738318247123,-500.0,0.00019212,2]
[351059351,1738318247132,-430.39608343,0.00019279,2]
[351059353,1738318247142,-1061.88,0.00019316,2]
[351059355,1738318247151,-269.14233695,0.00019352,2]
[351059357,1738318247161,-430.39608343,0.00019452,2]
[351059359,1738318247171,-1061.88,0.00019453,2]
[351059361,1738318247182,-608.53522392,0.00019529,2]
[351059363,1738318247192,-1062.0854,0.0001959,2]
[351059380,1738318247324,-587.0,0.0001961,2]
[351059382,1738318247350,-430.39608343,0.00019624,2]
[351059384,1738318247360,-608.53522392,0.00019629,2]
[351059386,1738318247369,-500.0,0.00019644,2]
[351059388,1738318247377,-608.53522392,0.00019729,2]
[351059390,1738318247386,-430.39608343,0.00019797,2]
[351059392,1738318247396,-830.5,0.00019815,7]
[351059394,1738318247406,-608.53522392,0.00019829,2]
[351059396,1738318247415,-558.98796767,0.00019863,9]
[351059398,1738318247424,-1200.0,0.00019887,2]
[351059400,1738318247433,-608.53522392,0.00019929,2]
[351059402,1738318247443,-430.39608343,0.00019969,2]
[351059404,1738318247453,-500.0,0.00019999,2]
[351059406,1738318247462,-160.0,0.0002,2]
[351059408,1738318247471,-2000.0,0.0002,2]
[351059411,1738318247481,-14749.0,0.0002,2]
[351059413,1738318247491,-608.53522392,0.00020029,2]
[351059415,1738318247501,-160.0,0.00020038,3]
[351059417,1738318247510,-608.53522392,0.00020129,2]
[351059419,1738318247519,-601.17227135,0.00020135,2]
[351059421,1738318247528,-430.39608343,0.00020141,2]
[351059423,1738318247538,-608.53522392,0.00020229,2]
[351059424,1738318247547,-430.39608343,0.00020314,2]
[351059426,1738318247556,-608.53522392,0.00020329,2]
[351059428,1738318247565,-542.0,0.0002041,3]
[351059430,1738318247574,-608.53522392,0.00020429,2]
[351059432,1738318247583,-163.343717,0.00020447,2]
[351059434,1738318247592,-430.39608343,0.00020486,2]
[351059436,1738318247602,-608.53522392,0.00020529,2]
[351059438,1738318247611,-500.0,0.00020547,2]
[351059440,1738318247620,-500.0,0.00020547,2]
[351059442,1738318247629,-500.0,0.00020547,2]
[351059444,1738318247638,-500.0,0.00020547,2]
[351059446,1738318247648,-500.0,0.00020547,2]
[351059448,1738318247657,-500.0,0.00020547,2]
[351059450,1738318247666,-500.0,0.00020547,2]
[351059452,1738318247675,-547.0,0.00020547,2]
[351059454,1738318247685,-357.71911726,0.00020548,2]
[351059456,1738318247695,-355.0,0.000206,9]
[351059458,1738318247705,-500.0,0.00020628,2]
[351059460,1738318247715,-608.53522392,0.00020629,2]
[351059462,1738318247724,-430.39608343,0.00020659,2]
[351059464,1738318247733,-608.53522392,0.00020729,2]
[351059466,1738318247743,-500.0,0.0002074,2]
[351059468,1738318247752,-500.0,0.00020791,2]
[351059470,1738318247761,-500.0,0.0002081,2]
[351059472,1738318247770,-608.53522392,0.00020829,2]
[351059474,1738318247779,-430.39608343,0.00020831,2]
[351059476,1738318247788,-608.53522392,0.00020929,2]
[351059478,1738318247798,-515.6360745,0.00020973,2]
[351059480,1738318247807,-500.0,0.00020973,2]
[351059482,1738318247816,-500.0,0.00020973,2]
[351059484,1738318247826,-500.0,0.00020973,2]
[351059486,1738318247835,-500.39680806,0.00020973,2]
[351059488,1738318247844,-500.0,0.00020973,2]
[351059490,1738318247854,-6607.25930178,0.00020998,2]
[351059493,1738318247867,-3111.77605218,0.00020998,2]
[351059891,1738318788123,163.343717,0.00013973,2]
[351059913,1738319373811,357.16,0.00010959,2]
[351059917,1738319384619,297.63,0.00010959,2]
[351059918,1738319395380,248.03,0.00010959,2]
[351059922,1738319405867,206.69,0.00010959,2]
[351059923,1738319416361,172.24,0.00010959,2]
[351059924,1738319426876,861.23,0.00010959,2]
[351059979,1738319432706,-319.38797,0.00015462,2]
[351059981,1738319432716,-1244.5060081,0.00015527,2]
[351059982,1738319432729,-514.5455394,0.00016338,2]
[351060077,1738319438585,-141.00106173,0.00016338,2]
[351060078,1738319438595,-300.0,0.00016437,2]
[351060079,1738319438604,-500.0,0.00016438,2]
[351060080,1738319438614,-500.0,0.00016438,2]
[351060081,1738319438624,-500.0,0.00016438,2]
[351060082,1738319438633,-500.0,0.00016438,2]
[351060084,1738319438643,-500.0,0.00016438,2]
[351060085,1738319438652,-500.0,0.00016438,2]
[351060086,1738319438662,-529.96341939,0.00016438,2]
[351060087,1738319438671,-627.59,0.00016438,2]
[351060088,1738319438681,-500.0,0.00016438,2]
[351060089,1738319438690,-500.0,0.00016438,2]
[351060090,1738319438699,-500.0,0.00016438,2]
[351060091,1738319438709,-500.40677505,0.00016438,2]
[351060092,1738319438719,-501.60542401,0.00016438,2]
[351060093,1738319438732,-500.0,0.00016438,2]
[351060094,1738319438742,-500.0,0.00016438,2]
[351060095,1738319438751,-500.0,0.00016438,2]
[351060096,1738319438760,-500.0,0.00016438,2]
[351060097,1738319438770,-500.0,0.00016438,2]
[351060098,1738319438780,-500.0,0.00016438,2]
[351060099,1738319438789,-500.0,0.00016438,2]
[351060100,1738319438799,-295.07950819,0.00016438,2]
[351060101,1738319438811,-500.0,0.00016438,2]
[351060102,1738319438821,-500.0,0.00016438,2]
[351060103,1738319438831,-500.0,0.00016438,2]
[351060104,1738319438841,-285.67016118,0.00016438,2]
[351060105,1738319438850,-500.0,0.00016438,2]
[351060106,1738319438860,-500.0,0.00016438,2]
[351060107,1738319438869,-357.92355443,0.00016438,2]
[351060108,1738319438878,-500.0,0.00016438,2]
[351060109,1738319438888,-500.0,0.00016438,2]
[351060110,1738319438897,-501.83177931,0.00016438,2]
[351060111,1738319438907,-500.0,0.00016438,2]
[351060112,1738319438917,-500.0,0.00016438,2]
[351060113,1738319438927,-500.0,0.00016438,2]
[351060114,1738319438936,-500.0,0.00016438,2]
[351060115,1738319438945,-500.0,0.00016438,2]
[351060116,1738319438955,-564.71,0.00016438,2]
[351060117,1738319438964,-469.62746594,0.00016438,2]
[351060118,1738319438974,-500.0,0.00016438,2]
[351060119,1738319438983,-500.0,0.00016438,2]
[351060120,1738319438993,-500.0,0.00016438,2]
[351060121,1738319439003,-500.0,0.00016438,2]
[351060122,1738319439012,-500.0,0.00016438,2]
[351060123,1738319439021,-500.0,0.00016438,2]
[351060124,1738319439030,-500.0,0.00016438,2]
[351060125,1738319439040,-500.0,0.00016438,2]
[351060126,1738319439049,-500.0,0.00016438,2]
[351060127,1738319439058,-500.0,0.00016438,2]
[351060128,1738319439068,-500.0,0.00016438,2]
[351060129,1738319439077,-500.0,0.00016438,2]
[351060130,1738319439086,-500.0,0.00016438,2]
[351060131,1738319439095,-500.0,0.00016438,2]
[351060132,1738319439105,-488.15321743,0.00016438,2]
[351060133,1738319439115,-501.460546,0.00016438,2]
[351060134,1738319439125,-500.0,0.00016438,2]
[351060135,1738319439135,-500.0,0.00016438,2]
[351060136,1738319439144,-500.0,0.00016438,2]
[351060137,1738319439154,-500.0,0.00016438,2]
[351060138,1738319439164,-500.0,0.00016438,2]
[351060139,1738319439174,-500.0,0.00016438,2]
[351060140,1738319439183,-500.0,0.00016438,2]
[351060141,1738319439193,-500.0,0.00016438,2]
[351060142,1738319439203,-500.0,0.00016438,2]
[351060143,1738319439212,-501.65443903,0.00016438,2]
[351060144,1738319439222,-500.0,0.00016438,2]
[351060145,1738319439232,-500.0,0.00016438,2]
[351060146,1738319439241,-500.0,0.00016438,2]
[351060147,1738319439250,-500.0,0.00016438,2]
[351060148,1738319439260,-500.0,0.00016438,2]
[351060149,1738319439269,-500.0,0.00016438,2]
[351060150,1738319439279,-500.0,0.00016438,2]
[351060151,1738319439287,-500.0,0.00016438,2]
[351060152,1738319439297,-500.0,0.00016438,2]
[351060153,1738319439306,-500.0,0.00016438,2]
[351060154,1738319439315,-500.0,0.00016438,2]
[351060155,1738319439324,-500.0,0.00016438,2]
[351060156,1738319439333,-500.0,0.00016438,2]
[351060157,1738319439343,-500.0,0.00016438,2]
[351060158,1738319439351,-500.0,0.00016438,2]
[351060159,1738319439362,-500.0,0.00016438,2]
[351060160,1738319439372,-500.0,0.00016438,2]
[351060161,1738319439381,-500.0,0.00016438,2]
[351060162,1738319439390,-500.0,0.00016438,2]
[351060163,1738319439399,-500.0,0.00016438,2]
[351060164,1738319439408,-500.0,0.00016438,2]
[351060165,1738319439418,-500.0,0.00016439,2]
[351060166,1738319439427,-482.19734042,0.00016439,2]
[351060167,1738319439436,-500.0,0.00016439,2]
[351060168,1738319439446,-500.0,0.00016439,2]
[351060169,1738319439456,-525.14083696,0.00016439,2]
[351060170,1738319439465,-504.48697567,0.00016439,2]
[351060171,1738319439474,-501.96832338,0.00016439,2]
[351060172,1738319439484,-348.18957218,0.00016439,2]
[351060173,1738319439493,-500.0,0.00016439,2]
[351060174,1738319439502,-325.98013287,0.00016439,2]
[351060175,1738319439511,-500.0,0.00016439,2]
[351060176,1738319439520,-500.0,0.00016439,2]
[351060177,1738319439530,-500.0,0.00016439,2]
[351060178,1738319439539,-502.09160468,0.00016439,2]
[351060179,1738319439548,-500.0,0.00016439,2]
[351060180,1738319439557,-500.0,0.00016439,2]
[351060181,1738319439567,-500.0,0.00016439,2]
[351060182,1738319439576,-500.0,0.00016439,2]
[351060183,1738319439585,-500.0,0.00016439,2]
[351060184,1738319439595,-500.0,0.00016439,2]
[351060185,1738319439604,-500.0,0.00016439,2]
[351060186,1738319439613,-151.0,0.00016485,2]
[351060187,1738319439623,-4880.54599372,0.00016485,2]
[351060188,1738319439636,-4981.96160424,0.00016485,2]
[351060196,1738319440639,-331.40099454,0.00016438,2]
[351060197,1738319440693,-168.59900546,0.00016438,2]
[351060198,1738319440703,-15037.49240204,0.00016485,2]
[351060200,1738319440840,-1805.41637364,0.00016569,2]
[351060201,1738319440855,-500.0,0.00016575,2]
[351060202,1738319440866,-500.0,0.00016575,2]
[351060203,1738319440875,-500.0,0.00016575,2]
[351060204,1738319440885,-500.0,0.00016575,2]
[351060205,1738319440894,-500.0,0.00016575,2]
[351060206,1738319440903,-500.0,0.00016575,2]
[351060207,1738319440913,-500.0,0.00016575,2]
[351060208,1738319440922,-500.0,0.00016575,2]
[351060209,1738319440932,-500.0,0.00016575,2]
[351060210,1738319440942,-500.0,0.00016575,2]
[351060211,1738319440951,-500.0,0.00016575,2]
[351060212,1738319440961,-500.0,0.00016575,2]
[351060213,1738319440970,-500.0,0.00016575,2]
[351060214,1738319440979,-500.0,0.00016575,2]
[351060215,1738319440989,-361.69,0.00016575,2]
[351060216,1738319440998,-500.0,0.00016575,2]
[351060217,1738319441007,-500.0,0.00016575,2]
[351060218,1738319441017,-500.0,0.00016575,2]
[351060219,1738319441026,-500.0,0.00016575,2]
[351060220,1738319441035,-500.0,0.00016575,2]
[351060221,1738319441045,-199.16,0.00016575,2]
[351060222,1738319441055,-500.0,0.00016575,2]
[351060223,1738319441064,-500.0,0.00016575,2]
[351060224,1738319441073,-500.0,0.00016575,2]
[351060225,1738319441082,-513.67935146,0.00016575,2]
[351060226,1738319441092,-500.0,0.00016575,2]
[351060227,1738319441101,-507.9967411,0.00016575,2]
[351060228,1738319441110,-500.0,0.00016576,2]
[351060229,1738319441119,-377.23920778,0.00016576,2]
[351060230,1738319441129,-500.0,0.00016712,2]
[351060231,1738319441138,-216.93,0.00016712,2]
[351060232,1738319441148,-529.32,0.00016712,2]
[351060233,1738319441157,-500.0,0.00016712,2]
[351060234,1738319441167,-500.0,0.00016712,2]
[351060235,1738319441176,-500.0,0.00016849,2]
[351060236,1738319441186,-500.0,0.00016849,2]
[351060237,1738319441195,-500.0,0.00016986,2]
[351060238,1738319441205,-594.08,0.00016986,2]
[351060239,1738319441214,-500.0,0.00017123,2]
[351060240,1738319441224,-655.54660113,0.00017172,2]
[351060241,1738319441233,-500.0,0.0001726,2]
[351060242,1738319441243,-155.419506,0.00017353,2]
[351060243,1738319441252,-151.0,0.00017353,2]
[351060244,1738319441261,-2050.7570499,0.00017353,2]
[351060245,1738319441271,-500.0,0.00017397,2]
[351060246,1738319441280,-500.0,0.00017534,2]
[351060247,1738319441289,-500.0,0.00017671,2]
[351060248,1738319441299,-6098.675128,0.000177,2]
[351060249,1738319441308,-500.0,0.00017808,2]
[351060250,1738319441317,-206.5901202,0.000179,2]
[351060251,1738319441326,-500.0,0.00017945,2]
[351060252,1738319441335,-420.0,0.00017963,2]
[351060253,1738319441344,-655.54660113,0.00018006,2]
[351060254,1738319441354,-500.0,0.00018082,2]
[351060255,1738319441363,-206.59012004,0.00018108,2]
[351060256,1738319441372,-500.0,0.00018219,2]
[351060257,1738319441382,-164.155,0.00018263,2]
[351060258,1738319441391,-206.59012004,0.00018317,2]
[351060259,1738319441400,-500.0,0.00018356,2]
[351060260,1738319441409,-500.0,0.00018493,2]
[351060261,1738319441418,-206.59012004,0.00018525,2]
[351060262,1738319441428,-500.0,0.00018548,2]
[351060263,1738319441437,-155.2,0.000186,2]
[351060264,1738319441447,-500.0,0.0001863,2]
[351060265,1738319441458,-4212.51460157,0.00018688,2]
[351060266,1738319441470,-6605.88376863,0.00018688,2]
[351060267,1738319441479,-206.59012004,0.00018733,2]
[351060268,1738319441488,-500.0,0.00018767,2]
[351060269,1738319441497,-655.54660113,0.0001884,2]
[351060270,1738319441506,-515.43330544,0.000189,2]
[351060271,1738319441515,-500.0,0.00018904,2]
[351060272,1738319441524,-206.59012004,0.00018942,2]
[351060273,1738319441534,-500.0,0.00019041,2]
[351060274,1738319441543,-206.59012004,0.0001915,2]
[351060275,1738319441552,-357.26,0.00019178,2]
[351060276,1738319441561,-500.0,0.00019199,2]
[351060277,1738319441570,-1229.19,0.000192,2]
[351060278,1738319441579,-206.59012004,0.00019358,2]
[351060279,1738319441588,-500.0,0.00019499,2]
[351060280,1738319441597,-500.0,0.00019499,2]
[351060281,1738319441607,-500.0,0.00019499,2]
[351060282,1738319441616,-500.0,0.00019499,2]
[351060283,1738319441625,-500.0,0.00019499,2]
[351060284,1738319441634,-393.69714435,0.00019499,2]
[351060285,1738319441643,-500.0,0.00019499,2]
[351060286,1738319441654,-500.0,0.00019499,2]
[351060287,1738319441667,-30000.0,0.000195,10]
[351060288,1738319441676,-30294.57397556,0.000195,10]
[351060289,1738319441685,-382.0,0.000195,8]
[351060290,1738319441695,-517.25494033,0.00019534,2]
[351060291,1738319441704,-206.59012004,0.00019567,2]
[351060292,1738319441713,-587.0,0.00019631,2]
[351060293,1738319441724,-517.25494033,0.00019634,2]
[351060294,1738319441734,-500.0,0.00019644,2]
[351060295,1738319441743,-655.54660113,0.00019675,2]
[351060296,1738319441752,-517.25494033,0.00019734,2]
[351060297,1738319441761,-206.59012004,0.00019775,2]
[351060298,1738319441770,-517.25494033,0.00019834,2]
[351060299,1738319441779,-517.25494033,0.00019934,2]
[351060300,1738319441789,-155.208,0.0001995,2]
[351060301,1738319441800,-206.59012004,0.00019983,2]
[351060302,1738319441809,-160.0,0.0002,2]
[351060303,1738319441818,-517.25494033,0.00020034,2]
[351060304,1738319441827,-1202.62,0.00020069,2]
[351060305,1738319441836,-517.25494033,0.00020134,2]
[351060306,1738319441846,-206.59012004,0.00020192,2]
[351060307,1738319441855,-517.25494033,0.00020234,2]
[351060308,1738319441864,-517.25494033,0.00020334,2]
[351060309,1738319441872,-206.59012004,0.000204,2]
[351060310,1738319441881,-151.0,0.00020404,2]
[351060311,1738319441891,-517.25494033,0.00020434,2]
[351060312,1738319441900,-378.08403759,0.00020509,2]
[351060365,1738319443610,-194.476,0.00018539,2]
[351060367,1738319443620,-277.46256354,0.00020509,2]
[351060369,1738319443629,-517.25494033,0.00020534,2]
[351060371,1738319443638,-345.99168967,0.00020548,2]
[351060373,1738319443647,-206.59012004,0.00020608,2]
[351060375,1738319443657,-517.25494033,0.00020634,2]
[351060377,1738319443666,-517.25494033,0.00020734,2]
[351060379,1738319443676,-500.0,0.0002074,2]
[351060381,1738319443685,-11933.76691815,0.00020787,5]
[351060383,1738319443694,-14495.25271932,0.00020787,5]
[351060520,1738319472635,233.122321,0.00013699,2]
[351060521,1738319665156,200.62831,0.00013973,2]
[351060523,1738320577741,205.126788,0.00013973,2]
[351060551,1738320631862,-250.0,0.00015515,2]
[351060553,1738320631871,-2571.287,0.00016338,2]
[351060555,1738320631881,-183.05168087,0.00016338,2]
[351060557,1738320631891,-2247.13311809,0.00016338,2]
[351060558,1738320631900,-501.08047821,0.00016438,2]
[351060559,1738320631909,-500.0,0.00016438,2]
[351060560,1738320631919,-500.35070583,0.00016438,2]
[351060561,1738320631928,-500.0,0.00016438,2]
[351060562,1738320631937,-500.0,0.00016438,2]
[351060563,1738320631946,-312.58059196,0.00016438,2]
[351060564,1738320631955,-501.50448116,0.00016438,2]
[351060565,1738320631965,-500.0,0.00016438,2]
[351060566,1738320631974,-500.0,0.00016438,2]
[351060567,1738320631983,-500.0,0.00016438,2]
[351060568,1738320631992,-189.33220142,0.00016438,2]
[351060569,1738320632002,-500.0,0.00016438,2]
[351060570,1738320632011,-500.0,0.00016438,2]
[351060571,1738320632020,-500.0,0.00016438,2]
[351060572,1738320632029,-252.15708785,0.00016438,2]
[351060573,1738320632038,-404.90455279,0.00016438,2]
[351060574,1738320632047,-509.58524936,0.00016438,2]
[351060575,1738320632056,-500.0,0.00016438,2]
[351060576,1738320632065,-500.0,0.00016438,2]
[351060577,1738320632075,-500.0,0.00016438,2]
[351060578,1738320632087,-377.68193093,0.00016438,2]
[351060579,1738320632097,-500.0,0.00016438,2]
[351060580,1738320632109,-500.0,0.00016438,2]
[351060581,1738320632118,-288.3058968,0.00016438,2]
[351060582,1738320632130,-211.6941032,0.00016438,2]
[351060583,1738320632140,-500.0,0.00016438,2]
[351060584,1738320632150,-500.0,0.00016438,2]
[351060585,1738320632159,-500.0,0.00016438,2]
[351060586,1738320632168,-500.0,0.00016438,2]
[351060587,1738320632178,-500.0,0.00016438,2]
[351060588,1738320632189,-275.75961333,0.00016438,2]
[351060589,1738320632198,-500.0,0.00016438,2]
[351060590,1738320632208,-500.0,0.00016438,2]
[351060591,1738320632217,-523.91799576,0.00016438,2]
[351060592,1738320632227,-500.0,0.00016438,2]
[351060593,1738320632236,-500.0,0.00016438,2]
[351060594,1738320632245,-500.0,0.00016438,2]
[351060595,1738320632254,-500.0,0.00016438,2]
[351060596,1738320632263,-426.98835418,0.00016438,2]
[351060597,1738320632272,-321.35323913,0.00016438,2]
[351060598,1738320632283,-178.64676087,0.00016438,2]
[351060599,1738320632296,-500.0,0.00016438,2]